fUST/lending_fUST_20240516
["ID","MTS","AMOUNT","RATE_DAILY","PERIOD"]
[327109997,1715818233171,-209.55173494,0.00021286,2]
[327109998,1715818233179,-8775.47796537,0.00021286,3]
[327109999,1715818233216,-310.0,0.00021286,3]
[327110090,1715818238666,-17084.25713713,0.00021286,3]
[327110245,1715818454278,2042.5,0.00025,60]
[327110286,1715818826220,370.76001489,9.999e-05,2]
[327110291,1715818951194,4241.58,0.00018001,2]
[327110296,1715819158157,-277.434,0.00019244,2]
[327110297,1715819158177,-221.44680751,0.00019245,2]
[327110302,1715819225096,-149.31320738,0.00019245,2]
[327110303,1715819225117,-272.31393735,0.00019246,2]
[327110304,1715819228110,-162.47070965,0.00019246,2]
[327110305,1715819228131,-41.79065945,0.00019737,2]
[327110306,1715819233123,-108.20934055,0.00019737,2]
[327110307,1715819233145,-150.0,0.00019935,2]
[327110308,1715819233166,-200.0,0.0002,2]
[327110309,1715819233187,-462.6997485,0.0002,2]
[327110310,1715819248111,-216.25292089,0.0002,2]
[327110311,1715819248134,-218.35885011,0.0002,2]
[327110605,1715819438458,-184.956,0.00019737,2]
[327110606,1715819438467,-150.0,0.00019738,2]
[327110608,1715819438476,-150.0,0.00019936,2]
[327110610,1715819438486,-370.76001489,0.00019996,2]
[327110611,1715819438495,-158.24938963,0.0002,2]
[327110612,1715819438548,-723.86601437,0.0002,2]
[327110613,1715819438557,-12703.0,0.0002,2]
[327110615,1715819438566,-172.800379,0.00020091,2]
[327110617,1715819438575,-150.0,0.00020134,2]
[327110619,1715819438584,-150.0,0.00020332,2]
[327110621,1715819438593,-150.0,0.00020337,2]
[327110623,1715819438602,-495.0,0.00020337,2]
[327110624,1715819438612,-906.53186591,0.00020529,2]
[327110625,1715819438620,-150.0,0.0002053,2]
[327110627,1715819438630,-150.0,0.00020728,2]
[327110628,1715819438639,-293.773,0.00020894,2]
[327110629,1715819438647,-341.21353748,0.000209,2]
[327110630,1715819438656,-3343.90529574,0.00020913,2]
[327110631,1715819438666,-18811.38454765,0.00020913,2]
[327110632,1715819438674,-150.0,0.00020927,2]
[327110633,1715819438683,-1874.81657268,0.00021,2]
[327110634,1715819438693,-182.39491143,0.00021073,2]
[327110635,1715819438702,-150.0,0.00021125,2]
[327110636,1715819438711,-281.0,0.000212,2]
[327110637,1715819438720,-562.0,0.000212,2]
[327110638,1715819438730,-562.0,0.000212,2]
[327110639,1715819438739,-157.2349656,0.00021284,2]
[327110640,1715819438747,-150.0,0.00021323,2]
[327110641,1715819438756,-7962.61734382,0.00021363,2]
[327110642,1715819438765,-98.42633573,0.00021384,2]
[327110643,1715819438777,-603.76795139,0.00021384,2]
[327110644,1715819438787,-320.90217582,0.00021384,2]
[327110645,1715819438797,-861.55431097,0.00021384,2]
[327110646,1715819438806,-1093.09826282,0.00021384,2]
[327110647,1715819438815,-314.01370968,0.00021384,2]
[327110648,1715819438824,-155.04997587,0.00021384,2]
[327110649,1715819438835,-5167.46602267,0.00021384,2]
[327110650,1715819438844,-1908.03339558,0.00021384,2]
[327110651,1715819438853,-241.9360222,0.00021384,2]
[327110652,1715819438863,-7147.76075865,0.00021384,2]
[327110653,1715819438872,-527.76435625,0.00021384,2]
[327110654,1715819438882,-157.25038364,0.00021384,2]
[327110655,1715819438891,-273.34503605,0.00021384,2]
[327110656,1715819438899,-485.85191442,0.00021384,2]
[327110657,1715819438908,-255.7484501,0.00021384,2]
[327110658,1715819438917,-252.815691,0.00021385,2]
[327110659,1715819438927,-500.0,0.00021385,2]
[327110660,1715819438936,-500.0,0.00021385,2]
[327110661,1715819438944,-500.0,0.00021385,2]
[327110662,1715819438953,-354.7001941,0.00021385,2]
[327110663,1715819438962,-500.0,0.00021385,2]
[327110664,1715819438971,-500.0,0.00021385,2]
[327110665,1715819438980,-592.01030516,0.00021385,2]
[327110666,1715819438990,-500.0,0.00021385,2]
[327110667,1715819438999,-500.0,0.00021385,2]
[327110668,1715819439008,-500.0,0.00021385,2]
[327110669,1715819439018,-500.0,0.00021385,2]
[327110670,1715819439027,-500.0,0.00021385,2]
[327110671,1715819439037,-500.0,0.00021385,2]
[327110672,1715819439047,-402.08896933,0.00021385,2]
[327110673,1715819439057,-11190.39366405,0.00021386,3]
[327110674,1715819439068,-84301.10995948,0.00021386,2]
[327110675,1715819439081,-157.23496558,0.00021389,2]
[327110676,1715819439093,-1500.0,0.000214,2]
[327110677,1715819439103,-157.23496558,0.00021495,2]
[327110678,1715819439114,-3000.0,0.000215,2]
[327110679,1715819439124,-3000.0,0.0002151,2]
[327110680,1715819439133,-3000.0,0.0002152,2]
[327110681,1715819439143,-150.0,0.00021521,2]
[327110682,1715819439155,-3000.0,0.0002153,2]
[327110683,1715819439166,-3000.0,0.0002154,2]
[327110684,1715819439175,-3000.0,0.0002155,2]
[327110685,1715819439185,-3000.0,0.0002156,2]
[327110686,1715819439195,-3000.0,0.0002157,2]
[327110687,1715819439205,-3000.0,0.0002158,2]
[327110688,1715819439215,-3000.0,0.0002159,2]
[327110689,1715819439225,-3000.0,0.000216,2]
[327110690,1715819439236,-157.23496558,0.000216,2]
[327110691,1715819439247,-3000.0,0.0002161,2]
[327110692,1715819439257,-10386.36065869,0.00021615,3]
[327110693,1715819439267,-2000.0,0.00021616,2]
[327110694,1715819439276,-3000.0,0.0002162,2]
[327110695,1715819439288,-3000.0,0.0002163,2]
[327110696,1715819439298,-3000.0,0.0002164,2]
[327110697,1715819439308,-151.0,0.00021643,2]
[327110698,1715819439318,-151.0,0.00021643,2]
[327110699,1715819439328,-151.0,0.00021643,2]
[327110700,1715819439338,-151.0,0.00021643,2]
[327110701,1715819439349,-194.560017,0.00021643,2]
[327110702,1715819439360,-151.0,0.00021643,2]
[327110703,1715819439370,-151.0,0.00021643,2]
[327110704,1715819439381,-172.995013,0.00021643,2]
[327110705,1715819439391,-151.0,0.00021643,2]
[327110706,1715819439401,-172.995013,0.00021643,2]
[327110707,1715819439412,-176.347502,0.00021643,2]
[327110708,1715819439422,-2540.74,0.00021643,2]
[327110709,1715819439433,-2540.74,0.00021643,2]
[327110710,1715819439444,-2540.74,0.00021643,2]
[327110711,1715819439454,-2540.74,0.00021643,2]
[327110712,1715819439465,-2540.74,0.00021643,2]
[327110713,1715819439475,-2540.74,0.00021643,2]
[327110714,1715819439485,-3000.0,0.0002165,2]
[327110715,1715819439495,-341.21353744,0.00021657,2]
[327110716,1715819439505,-3000.0,0.0002166,2]
[327110717,1715819439515,-151.0,0.0002166,2]
[327110718,1715819439526,-151.0,0.0002166,2]
[327110719,1715819439537,-151.0,0.0002166,2]
[327110720,1715819439547,-184.068221,0.0002166,2]
[327110721,1715819439559,-3000.0,0.0002167,2]
[327110722,1715819439570,-151.0,0.0002168,2]
[327110723,1715819439580,-3000.0,0.0002168,2]
[327110724,1715819439591,-3000.0,0.0002169,2]
[327110725,1715819439601,-151.0,0.000217,2]
[327110726,1715819439611,-151.0,0.000217,2]
[327110727,1715819439622,-3000.0,0.000217,2]
[327110728,1715819439632,-151.0,0.000217,2]
[327110729,1715819439643,-172.995013,0.000217,2]
[327110730,1715819439654,-266.274865,0.000217,2]
[327110731,1715819439665,-172.995013,0.000217,2]
[327110732,1715819439676,-2540.74,0.00021709,2]
[327110733,1715819439687,-4846.873959,0.0002171,2]
[327110734,1715819439697,-151.0,0.0002171,2]
[327110735,1715819439709,-151.0,0.0002171,2]
[327110736,1715819439719,-6313.19704668,0.00021716,3]
[327110737,1715819439730,-150.0,0.00021719,2]
[327110738,1715819439741,-2540.74,0.00021815,2]
[327110739,1715819439752,-2540.74,0.00021815,2]
[327110740,1715819439762,-151.0,0.00021816,2]
[327110741,1715819439772,-151.0,0.00021816,2]
[327110742,1715819439782,-151.0,0.00021816,2]
[327110743,1715819439796,-151.0,0.00021816,2]
[327110744,1715819439806,-151.0,0.00021816,2]
[327110745,1715819439817,-151.0,0.00021816,2]
[327110746,1715819439826,-172.995013,0.00021816,2]
[327110747,1715819439836,-172.995013,0.00021816,2]
[327110748,1715819439846,-1461.82515606,0.000219,4]
[327110749,1715819439856,-502.0,0.000219,2]
[327110750,1715819439866,-562.0,0.000219,2]
[327110751,1715819439875,-1172.0,0.000219,2]
[327110752,1715819439886,-151.0,0.000219,2]
[327110754,1715819439897,-151.0,0.000219,2]
[327110755,1715819439906,-151.0,0.000219,2]
[327110756,1715819439916,-303.5252822,0.00021913,2]
[327110757,1715819439926,-155.25899652,0.00021913,2]
[327110758,1715819439936,-195.57064013,0.00021914,2]
[327110759,1715819439947,-1335.83536924,0.00021914,2]
[327110760,1715819439957,-2540.74,0.00021915,2]
[327110761,1715819439967,-151.0,0.00021916,2]
[327110762,1715819439977,-151.0,0.00021916,2]
[327110763,1715819439987,-151.0,0.00021916,2]
[327110764,1715819439997,-151.0,0.00021916,2]
[327110765,1715819440007,-151.0,0.00021916,2]
[327110766,1715819440017,-151.0,0.00021916,2]
[327110767,1715819440026,-172.995013,0.00021916,2]
[327110768,1715819440038,-172.995013,0.00021916,2]
[327110769,1715819440048,-2540.74,0.00021916,2]
[327110770,1715819440058,-2540.74,0.00021916,2]
[327110771,1715819440069,-2540.74,0.00021916,2]
[327110772,1715819440080,-2540.74,0.00021916,2]
[327110773,1715819440090,-2540.74,0.00021916,2]
[327110774,1715819440101,-2540.74,0.00021916,2]
[327110775,1715819440111,-2540.74,0.00021916,2]
[327110776,1715819440120,-2540.74,0.00021916,2]
[327110777,1715819440130,-2540.74,0.00021916,2]
[327110778,1715819440140,-174.99718601,0.00021916,2]
[327110825,1715820070134,154.79876161,9.999e-05,2]
[327110832,1715820221787,370.76001489,9.999e-05,2]
[327110833,1715820335106,-283.50341374,0.00019406,2]
[327110834,1715820335129,-179.074748,0.00019408,2]
[327110835,1715820335150,-145.28457739,0.0001966,2]
[327110836,1715820430159,-217.21796093,0.000189,2]
[327110837,1715820430181,-4.71542261,0.0001966,2]
[327110838,1715820430201,-154.79876161,0.00019799,2]
[327110839,1715820430223,-150.0,0.00019865,2]
[327110840,1715820430243,-353.73434075,0.0002,2]
[327110841,1715820430264,-495.0,0.00020529,2]
[327110842,1715820430284,-150.0,0.00020529,2]
[327110843,1715820430303,-174.58151055,0.000209,2]
[327110844,1715820430325,-161.7686156,0.00020911,2]
[327110845,1715820430344,-215.37581827,0.00020912,2]
[327110846,1715820430368,-12703.0,0.00020912,2]
[327110847,1715820430392,-190.59169872,0.00020912,2]
[327110848,1715820430414,-500.0,0.00020912,2]
[327110849,1715820430437,-500.0,0.00020912,2]
[327110850,1715820430459,-500.0,0.00020912,2]
[327110851,1715820430480,-500.0,0.00020912,2]
[327110852,1715820430501,-500.0,0.00020912,2]
[327110853,1715820430523,-500.0,0.00020912,2]
[327110854,1715820430545,-500.0,0.00020912,2]
[327110855,1715820430567,-500.0,0.00020912,2]
[327110856,1715820430588,-535.57989217,0.00020912,2]
[327110857,1715820430610,-500.0,0.00020912,2]
[327110858,1715820430633,-500.0,0.00020913,2]
[327110859,1715820430654,-406.41005823,0.00020913,2]
[327110860,1715820430675,-500.0,0.00020913,2]
[327110861,1715820430695,-172.323844,0.00020913,2]
[327110862,1715820430715,-527.60309155,0.00020913,2]
[327110863,1715820430734,-130319.79638828,0.00020913,2]
[327110864,1715820430754,-1236.80017075,0.00021,2]
[327110865,1715820430774,-8970.22067666,0.00021155,2]
[327110866,1715820439117,-546.914145,0.00021155,2]
[327110867,1715820449099,-1224.49852934,0.00021155,2]
[327110868,1715820449121,-150.0,0.000215,2]
[327110869,1715820449141,-159.2224157,0.00021671,2]
[327110870,1715820449162,-182.39491144,0.00021696,2]
[327110871,1715820449182,-309.42719491,0.00021813,2]
[327110872,1715820449205,-522.03,0.00021816,2]
[327110873,1715820449226,-522.03,0.00021816,2]
[327110874,1715820449246,-2000.0,0.00021817,2]
[327110875,1715820449265,-281.0,0.000219,2]
[327110876,1715820449285,-562.0,0.000219,2]
[327110877,1715820449304,-562.0,0.000219,2]
[327110878,1715820449323,-562.0,0.000219,2]
[327110879,1715820449538,-522.03,0.00021915,2]
[327110880,1715820449557,-154.79876161,0.00021915,2]
[327110881,1715820449577,-8109.41819677,0.00021915,2]
[327110882,1715820449606,-354.2613691,0.00021915,2]
[327110883,1715820452154,-460.98401074,0.00021915,2]
[327110897,1715820632879,-154.79876161,0.00020908,2]
[327110898,1715820632888,-353.73434075,0.00020909,2]
[327110899,1715820632897,-6451.46414262,0.00020912,2]
[327110900,1715820632953,-6251.53585738,0.00020912,2]
[327110901,1715820632962,-458.28092746,0.00020913,2]
[327110902,1715820632971,-103301.9297383,0.00020913,2]
[327111062,1715820643964,-500.0,0.00020912,2]
[327111063,1715820643973,-500.0,0.00020912,2]
[327111065,1715820643983,-353.55798922,0.00020912,2]
[327111067,1715820643992,-500.0,0.00020912,2]
[327111068,1715820644001,-174.17573924,0.00020913,2]
[327111070,1715820644011,-336.36675654,0.00020913,2]
[327111112,1715820646788,-353.73434075,0.00020911,2]
[327111113,1715820646797,-26681.49989344,0.00020913,2]
[327111114,1715820646806,-1236.80017075,0.00021,2]
[327111115,1715820646816,-2148.72466673,0.00021155,2]
[327111116,1715820646825,-500.0,0.00021814,2]
[327111117,1715820646834,-500.0,0.00021814,2]
[327111118,1715820646843,-312.40775801,0.00021815,2]
[327111119,1715820646852,-500.0,0.00021816,2]
[327111120,1715820646861,-500.0,0.00021816,2]
[327111121,1715820646870,-5193.18032935,0.00021817,3]
[327111122,1715820646880,-88888.0,0.00021817,3]
[327111123,1715820646890,-1100.47425411,0.00021915,2]
[327111124,1715820646899,-3974.71033268,0.00021915,2]
[327111125,1715820646909,-500.0,0.00021915,2]
[327111126,1715820646919,-500.0,0.00021916,2]
[327111127,1715820646928,-500.0,0.00021916,2]
[327111128,1715820646937,-500.0,0.00021916,2]
[327111129,1715820646947,-500.0,0.00021916,2]
[327111130,1715820646956,-500.0,0.00021916,2]
[327111131,1715820646965,-500.0,0.00021916,2]
[327111132,1715820646982,-500.0,0.00021916,2]
[327111133,1715820647000,-500.0,0.00021916,2]
[327111134,1715820647014,-500.0,0.00021916,2]
[327111135,1715820647031,-500.0,0.00021916,2]
[327111136,1715820647048,-500.0,0.00021916,2]
[327111137,1715820647065,-500.0,0.00021916,2]
[327111138,1715820647083,-500.0,0.00021916,2]
[327111139,1715820647098,-500.0,0.00021916,2]
[327111140,1715820647114,-500.0,0.00021916,2]
[327111141,1715820647131,-500.0,0.00021916,2]
[327111142,1715820647144,-462.80021301,0.00021916,2]
[327111143,1715820647159,-161.37202121,0.00021916,2]
[327111144,1715820647174,-160.0,0.00021916,2]
[327111145,1715820647192,-5595.19683203,0.00021917,3]
[327111146,1715820647210,-550.22,0.00021917,2]
[327111147,1715820647224,-500.0,0.00021917,2]
[327111148,1715820647236,-500.0,0.00021917,2]
[327111149,1715820647252,-500.0,0.00021917,2]
[327111150,1715820647268,-517.37947182,0.00021917,2]
[327111151,1715820647281,-825.88,0.00021917,2]
[327111152,1715820647296,-825.88,0.00021917,2]
[327111153,1715820647308,-825.88,0.00021917,2]
[327111154,1715820647320,-825.88,0.00021917,2]
[327111155,1715820647335,-825.88,0.00021917,2]
[327111156,1715820647349,-825.88,0.00021917,2]
[327111157,1715820647361,-825.88,0.00021917,2]
[327111158,1715820647375,-825.88,0.00021917,2]
[327111159,1715820647388,-825.88,0.00021917,2]
[327111160,1715820647404,-825.88,0.00021917,2]
[327111161,1715820647417,-825.88,0.00021917,2]
[327111162,1715820647433,-825.88,0.00021917,2]
[327111163,1715820647446,-825.88,0.00021917,2]
[327111164,1715820647459,-825.88,0.00021917,2]
[327111165,1715820647475,-825.88,0.00021917,2]
[327111166,1715820647487,-825.88,0.00021917,2]
[327111167,1715820647501,-825.88,0.00021917,2]
[327111168,1715820647516,-825.88,0.00021917,2]
[327111169,1715820647529,-825.88,0.00021917,2]
[327111170,1715820647543,-825.88,0.00021917,2]
[327111171,1715820647556,-825.88,0.00021917,2]
[327111172,1715820647569,-825.88,0.00021917,2]
[327111173,1715820647582,-825.88,0.00021917,2]
[327111174,1715820647596,-826.1,0.00021917,2]
[327111175,1715820647609,-500.0,0.00021917,2]
[327111176,1715820647622,-356.76766253,0.00021917,2]
[327111177,1715820647634,-500.0,0.00021917,2]
[327111178,1715820647647,-500.0,0.00021917,2]
[327111179,1715820647662,-500.0,0.00021917,2]
[327111180,1715820647675,-500.0,0.00021917,2]
[327111181,1715820647688,-500.0,0.00021917,2]
[327111182,1715820647701,-500.0,0.00021917,2]
[327111183,1715820647714,-648.37,0.00021917,2]
[327111184,1715820647727,-500.0,0.00021917,2]
[327111185,1715820647741,-500.0,0.00021917,2]
[327111186,1715820647754,-1150.15,0.00021917,2]
[327111187,1715820647767,-500.0,0.00021917,2]
[327111188,1715820647779,-500.0,0.00021917,2]
[327111189,1715820647792,-1000.0,0.00021917,2]
[327111190,1715820647806,-541.98,0.00021917,2]
[327111191,1715820647820,-500.0,0.00021917,2]
[327111192,1715820647833,-500.0,0.00021917,2]
[327111193,1715820647846,-500.0,0.00021917,2]
[327111194,1715820647860,-423.13095646,0.00021917,2]
[327111195,1715820647872,-500.0,0.00021917,2]
[327111196,1715820647885,-500.0,0.00021917,2]
[327111197,1715820647900,-500.0,0.00021917,2]
[327111198,1715820647915,-500.0,0.00021917,2]
[327111199,1715820647928,-500.0,0.00021917,2]
[327111200,1715820647940,-500.0,0.00021917,2]
[327111201,1715820647953,-500.0,0.00021917,2]
[327111202,1715820647966,-500.0,0.00021917,2]
[327111203,1715820647979,-500.0,0.00021917,2]
[327111204,1715820647992,-500.0,0.00021917,2]
[327111205,1715820648006,-500.0,0.00021917,2]
[327111206,1715820648018,-677.83,0.00021917,2]
[327111207,1715820648033,-500.0,0.00021917,2]
[327111208,1715820648046,-500.0,0.00021917,2]
[327111209,1715820648062,-500.0,0.00021917,2]
[327111210,1715820648076,-500.0,0.00021917,2]
[327111211,1715820648090,-500.0,0.00021917,2]
[327111212,1715820648100,-500.0,0.00021917,2]
[327111213,1715820648110,-500.0,0.00021917,2]
[327111214,1715820648119,-536.59569366,0.00021917,2]
[327111215,1715820648129,-500.0,0.00021917,2]
[327111216,1715820648138,-500.0,0.00021917,2]
[327111217,1715820648148,-500.0,0.00021917,2]
[327111218,1715820648160,-500.0,0.00021917,2]
[327111219,1715820648169,-3946.65,0.00021917,2]
[327111220,1715820648180,-3946.65,0.00021917,2]
[327111221,1715820648190,-3946.65,0.00021917,2]
[327111222,1715820648417,-500.0,0.00021917,2]
[327111223,1715820648447,-3946.65,0.00021917,2]
[327111224,1715820648456,-3946.65,0.00021917,2]
[327111225,1715820648467,-3946.65,0.00021917,2]
[327111226,1715820648476,-3946.65,0.00021917,2]
[327111227,1715820648485,-3946.65,0.00021917,2]
[327111228,1715820648494,-3946.65,0.00021917,2]
[327111229,1715820648503,-3946.65,0.00021917,2]
[327111230,1715820648514,-500.0,0.00021917,2]
[327111231,1715820648525,-3946.65,0.00021917,2]
[327111232,1715820648534,-3946.65,0.00021917,2]
[327111233,1715820648543,-3946.65,0.00021917,2]
[327111234,1715820648552,-3946.65,0.00021917,2]
[327111235,1715820648561,-3946.65,0.00021917,2]
[327111236,1715820648571,-3946.65,0.00021917,2]
[327111237,1715820648580,-500.0,0.00021917,2]
[327111238,1715820648590,-3946.65,0.00021917,2]
[327111239,1715820648600,-3946.65,0.00021917,2]
[327111240,1715820648609,-3946.65,0.00021917,2]
[327111241,1715820648618,-3946.65,0.00021917,2]
[327111242,1715820648628,-3946.65,0.00021917,2]
[327111243,1715820648637,-500.0,0.00021917,2]
[327111244,1715820648646,-3946.65,0.00021917,2]
[327111245,1715820648658,-3946.65,0.00021917,2]
[327111246,1715820648667,-3946.72316179,0.00021917,2]
[327111247,1715820648676,-500.0,0.00021917,2]
[327111248,1715820648686,-500.0,0.00021917,2]
[327111249,1715820648696,-584.66,0.00021917,2]
[327111250,1715820648707,-2090.32,0.00021917,2]
[327111251,1715820648717,-500.0,0.00021917,2]
[327111252,1715820648726,-500.0,0.00021917,2]
[327111253,1715820648736,-500.0,0.00021917,2]
[327111254,1715820648746,-500.0,0.00021917,2]
[327111255,1715820648757,-500.0,0.00021917,2]
[327111256,1715820648767,-1059.72,0.00021917,2]
[327111257,1715820648777,-1386.07,0.00021917,2]
[327111258,1715820648787,-500.0,0.00021917,2]
[327111259,1715820648799,-297.42688912,0.00021917,2]
[327111260,1715820648809,-500.0,0.00021917,2]
[327111261,1715820648817,-500.0,0.00021917,2]
[327111262,1715820648827,-500.0,0.00021917,2]
[327111263,1715820648837,-500.0,0.00021917,2]
[327111264,1715820648846,-500.0,0.00021917,2]
[327111265,1715820648857,-500.0,0.00021917,2]
[327111266,1715820648867,-500.0,0.00021917,2]
[327111267,1715820648877,-620.44,0.00021917,2]
[327111268,1715820648886,-235.03479628,0.00021917,2]
[327111269,1715820648895,-500.0,0.00021917,2]
[327111270,1715820648905,-500.0,0.00021917,2]
[327111271,1715820648914,-500.0,0.00021917,2]
[327111272,1715820648924,-500.0,0.00021917,2]
[327111273,1715820648934,-751.42,0.00021917,2]
[327111274,1715820648943,-500.0,0.00021917,2]
[327111275,1715820648952,-500.0,0.00021917,2]
[327111276,1715820648961,-504.57706465,0.00021917,2]
[327111277,1715820648970,-500.0,0.00021917,2]
[327111278,1715820648979,-500.0,0.00021917,2]
[327111279,1715820648988,-500.0,0.00021917,2]
[327111280,1715820648997,-500.0,0.00021917,2]
[327111281,1715820649006,-500.0,0.00021917,2]
[327111282,1715820649016,-500.0,0.00021917,2]
[327111283,1715820649025,-500.0,0.00021917,2]
[327111284,1715820649034,-500.0,0.00021917,2]
[327111285,1715820649043,-500.0,0.00021917,2]
[327111286,1715820649053,-500.0,0.00021917,2]
[327111287,1715820649062,-416.08793382,0.00021917,2]
[327111288,1715820649071,-500.0,0.00021917,2]
[327111289,1715820649080,-506.54247493,0.00021917,2]
[327111290,1715820649089,-500.0,0.00021917,2]
[327111291,1715820649099,-500.0,0.00021917,2]
[327111292,1715820649109,-500.0,0.00021917,2]
[327111293,1715820649118,-500.0,0.00021917,2]
[327111294,1715820649127,-500.0,0.00021917,2]
[327111295,1715820649136,-500.0,0.00021917,2]
[327111296,1715820649145,-522.19507174,0.00021917,2]
[327111297,1715820649154,-500.0,0.00021917,2]
[327111298,1715820649163,-500.0,0.00021917,2]
[327111299,1715820649173,-500.0,0.00021917,2]
[327111300,1715820649182,-709.63,0.00021917,2]
[327111301,1715820649191,-1054.87,0.00021917,2]
[327111302,1715820649200,-500.0,0.00021917,2]
[327111303,1715820649209,-500.0,0.00021917,2]
[327111304,1715820649218,-500.0,0.00021917,2]
[327111305,1715820649228,-500.0,0.00021917,2]
[327111306,1715820649237,-500.0,0.00021917,2]
[327111307,1715820649247,-500.0,0.00021917,2]
[327111308,1715820649256,-500.0,0.00021917,2]
[327111309,1715820649266,-500.0,0.00021917,2]
[327111310,1715820649275,-500.0,0.00021917,2]
[327111311,1715820649284,-500.0,0.00021917,2]
[327111312,1715820649295,-500.0,0.00021917,2]
[327111313,1715820649304,-500.0,0.00021917,2]
[327111314,1715820649313,-500.0,0.00021917,2]
[327111315,1715820649324,-500.0,0.00021917,2]
[327111316,1715820649333,-500.0,0.00021917,2]
[327111317,1715820649342,-500.0,0.00021917,2]
[327111318,1715820649352,-500.0,0.00021917,2]
[327111319,1715820649361,-500.0,0.00021917,2]
[327111320,1715820649370,-500.0,0.00021917,2]
[327111321,1715820649380,-500.0,0.00021917,2]
[327111322,1715820649389,-500.0,0.00021917,2]
[327111323,1715820649398,-500.64,0.00021917,2]
[327111324,1715820649410,-500.0,0.00021917,2]
[327111325,1715820649418,-506.40330422,0.00021917,2]
[327111326,1715820649433,-500.0,0.00021917,2]
[327111327,1715820649442,-500.0,0.00021917,2]
[327111328,1715820649451,-500.0,0.00021917,2]
[327111329,1715820649460,-861.56,0.00021917,2]
[327111330,1715820649471,-500.0,0.00021917,2]
[327111331,1715820649480,-500.0,0.00021917,2]
[327111332,1715820649489,-500.0,0.00021917,2]
[327111333,1715820649498,-500.0,0.00021917,2]
[327111334,1715820649508,-762.16,0.00021917,2]
[327111335,1715820649518,-609.91159126,0.00021917,2]
[327111336,1715820649805,-249.95840874,0.00021917,2]
[327111337,1715820649815,-500.0,0.00021917,2]
[327111338,1715820649825,-500.0,0.00021917,2]
[327111339,1715820649834,-171.49791884,0.00021917,2]
[327111341,1715821260337,283.50341374,0.000137,2]
[327111342,1715821280129,154.81422293,9.999e-05,2]
[327111343,1715821541113,-150.0,0.00019352,2]
[327111344,1715821541135,-150.0,0.00019585,2]
[327111345,1715821541156,-150.0,0.00019817,2]
[327111346,1715821541176,-204.39493326,0.0002,2]
[327111348,1715821641093,-170.852222,0.000189,2]
[327111349,1715821654102,-23.95975196,0.000189,2]
[327111350,1715821654121,-353.73434075,0.00020528,2]
[327111351,1715821654141,-412.30515329,0.00020529,2]
[327111352,1715821709800,500.0,0.0002,15]
[327111353,1715821794169,500.0,0.00019,15]
[327111354,1715821830159,615.603646,0.00019,15]
[327111381,1715821832760,-150.0,0.00019358,2]
[327111382,1715821832770,-150.0,0.00019591,2]
[327111384,1715821832779,-176.912599,0.00019636,2]
[327111385,1715821832789,-150.0,0.00019823,2]
[327111388,1715821832798,-353.73434075,0.0002,2]
[327111389,1715821832807,-150.0,0.00020056,2]
[327111390,1715821832817,-150.0,0.00020289,2]
[327111391,1715821832826,-82.69484671,0.00020529,2]
[327111392,1715821832836,-1100.47425411,0.00020529,2]
[327111393,1715821832846,-157.23496558,0.000209,2]